fUSD/lending_fUSD_20241122
["ID","MTS","AMOUNT","RATE_DAILY","PERIOD"]
[342972054,1732236669950,-373.99,0.00058559,120]
[342972055,1732236669960,-398.12,0.00058559,120]
[342972056,1732236669970,-588.41933177,0.00058559,120]
[342972057,1732236669979,-562.29,0.00058559,120]
[342972058,1732236669989,-151.0,0.00058559,120]
[342972059,1732236669998,-636.68,0.00058559,120]
[342972060,1732236670007,-300.0,0.00058559,120]
[342972061,1732236670015,-478.14,0.00058559,60]
[342972062,1732236670023,-500.0,0.00058559,90]
[342972063,1732236670032,-552.26137283,0.00058559,120]
[342972064,1732236670042,-500.0,0.00058559,120]
[342972065,1732236670052,-500.0,0.00058559,120]
[342972066,1732236670061,-547.84,0.00058559,120]
[342972067,1732236670071,-572.24,0.00058559,120]
[342972068,1732236670082,-500.0,0.00058559,120]
[342972069,1732236670093,-500.0,0.00058559,120]
[342972070,1732236670101,-500.0,0.00058559,120]
[342972071,1732236670110,-470.64,0.00058559,120]
[342972072,1732236670119,-500.0,0.00058559,120]
[342972073,1732236670128,-473.17,0.00058559,120]
[342972074,1732236670137,-500.0,0.00058559,120]
[342972075,1732236670147,-500.0,0.00058559,120]
[342972076,1732236670156,-403.24721042,0.00058559,120]
[342972077,1732236670168,-500.0,0.00058559,120]
[342972078,1732236670176,-460.88,0.00058559,120]
[342972079,1732236670185,-500.0,0.00058559,120]
[342972080,1732236670194,-500.0,0.0005857,120]
[342972081,1732236670203,-150.0,0.000586,120]
[342972082,1732236670212,-250.0,0.000586,30]
[342972083,1732236670221,-150.0,0.000586,120]
[342972084,1732236670230,-1120.87627033,0.00058604,30]
[342972085,1732236670239,-1098.27706338,0.00058604,30]
[342972086,1732236670249,-1033.47792823,0.00058604,30]
[342972087,1732236670259,-240.08,0.0005875,120]
[342972088,1732236670268,-1909.46901358,0.000588,120]
[342972089,1732236670277,-1909.46901358,0.000588,120]
[342972090,1732236670287,-1909.46901358,0.000588,120]
[342972091,1732236670296,-1909.46901358,0.000588,120]
[342972092,1732236670309,-1909.46901358,0.000588,120]
[342972093,1732236670319,-1909.46901358,0.000588,120]
[342972094,1732236670328,-1909.46901358,0.000588,120]
[342972095,1732236670339,-1909.46901358,0.000588,120]
[342972096,1732236670350,-1909.46901358,0.000588,120]
[342972097,1732236670360,-1909.46801358,0.000588,120]
[342972098,1732236670369,-1000.0,0.00058833,120]
[342972099,1732236670379,-300.0,0.00058833,120]
[342972100,1732236670388,-500.0,0.00058844,120]
[342972101,1732236670397,-500.0,0.00058903,120]
[342972102,1732236670406,-500.0,0.00058903,120]
[342972103,1732236670415,-500.0,0.00058903,120]
[342972104,1732236670425,-500.0,0.00058903,120]
[342972105,1732236670434,-500.0,0.00058903,120]
[342972106,1732236670443,-500.0,0.00058903,120]
[342972107,1732236670453,-240.3257256,0.00058903,120]
[342972108,1732236670463,-500.0,0.00058903,120]
[342972109,1732236670472,-500.0,0.00058903,120]
[342972110,1732236670481,-500.0,0.00058903,120]
[342972111,1732236670491,-500.0,0.00058903,120]
[342972112,1732236670501,-500.0,0.00058903,120]
[342972113,1732236670510,-500.0,0.00058903,120]
[342972114,1732236670519,-500.0,0.00058903,120]
[342972115,1732236670528,-613.93537992,0.00058903,120]
[342972116,1732236670537,-500.0,0.00058903,120]
[342972117,1732236670547,-500.0,0.00058903,120]
[342972118,1732236670555,-500.0,0.00058903,120]
[342972119,1732236670564,-500.0,0.00058903,120]
[342972120,1732236670574,-500.0,0.00058903,120]
[342972121,1732236670583,-500.0,0.00058903,120]
[342972122,1732236670596,-500.0,0.00058903,120]
[342972123,1732236670605,-500.0,0.00058903,120]
[342972124,1732236670614,-500.0,0.00058903,120]
[342972125,1732236670624,-500.0,0.00058903,120]
[342972126,1732236670634,-500.0,0.00058903,120]
[342972127,1732236670643,-566.49611889,0.00058903,120]
[342972128,1732236670653,-500.0,0.00058903,120]
[342972129,1732236670662,-500.0,0.00058903,120]
[342972130,1732236670672,-500.0,0.00058903,120]
[342972131,1732236670683,-500.0,0.00058903,120]
[342972132,1732236670693,-500.0,0.00058903,120]
[342972133,1732236670702,-500.0,0.00058903,120]
[342972134,1732236670712,-151.0,0.00058903,120]
[342972135,1732236670722,-151.0,0.00058903,120]
[342972136,1732236670731,-151.0,0.00058903,120]
[342972137,1732236670742,-562.29,0.00058903,120]
[342972138,1732236670752,-161.181798,0.00058903,120]
[342972139,1732236670761,-161.181798,0.00058903,120]
[342972140,1732236670771,-299.82,0.00058903,120]
[342972141,1732236670781,-385.7216,0.00058903,120]
[342972142,1732236670791,-412.78,0.00058903,120]
[342972143,1732236670801,-385.7216,0.00058903,120]
[342972144,1732236670810,-500.0,0.00058903,21]
[342972145,1732236670820,-151.0,0.00058903,120]
[342972146,1732236670830,-643.21,0.00058903,120]
[342972147,1732236670842,-151.0,0.00058903,120]
[342972148,1732236670852,-151.0,0.00058903,120]
[342972149,1732236670861,-500.0,0.00058903,120]
[342972150,1732236670871,-151.0,0.00058903,120]
[342972151,1732236670881,-216.44738974,0.00058903,120]
[342972152,1732236670890,-2874.19,0.00058957,120]
[342972153,1732236670899,-1323.93,0.00058957,120]
[342972154,1732236670909,-500.0,0.00058958,120]
[342972155,1732236670918,-167.02,0.00058958,120]
[342972156,1732236670927,-160.0,0.00058958,120]
[342972157,1732236670937,-500.0,0.00058958,120]
[342972158,1732236670946,-500.0,0.00058958,120]
[342972159,1732236670956,-151.0,0.00058958,120]
[342972160,1732236670966,-151.0,0.00058958,120]
[342972161,1732236670975,-151.0,0.00058958,30]
[342972162,1732236670985,-222.805724,0.00058958,120]
[342972163,1732236670995,-222.805724,0.00058958,120]
[342972164,1732236671005,-369.64,0.00058958,120]
[342972165,1732236671014,-151.0,0.00058958,110]
[342972166,1732236671023,-151.0,0.00058958,120]
[342972167,1732236671033,-500.0,0.00058958,120]
[342972168,1732236671042,-500.0,0.00058958,120]
[342972169,1732236671052,-151.0,0.00058958,120]
[342972170,1732236671061,-500.0,0.00058958,120]
[342972171,1732236671070,-500.0,0.00058958,120]
[342972172,1732236671080,-500.0,0.00058958,120]
[342972173,1732236671091,-357.02091354,0.00058958,120]
[342972174,1732236671102,-292.96,0.00058958,7]
[342972175,1732236671112,-510.25,0.00058958,120]
[342972176,1732236671122,-293.18714236,0.00058958,120]
[342972177,1732236671132,-523.5679614,0.00058958,120]
[342972178,1732236671141,-683.55,0.00058958,120]
[342972179,1732236671151,-276.59823195,0.00058958,120]
[342972180,1732236671161,-357.8,0.00058958,120]
[342972181,1732236671170,-155.58,0.00058958,120]
[342972182,1732236671179,-500.0,0.00058958,120]
[342972183,1732236671189,-500.0,0.00058958,120]
[342972184,1732236671198,-389.539599,0.00058958,120]
[342972185,1732236671208,-389.539599,0.00058958,120]
[342972186,1732236671217,-500.0,0.00058958,120]
[342972187,1732236671227,-500.0,0.00058958,120]
[342972188,1732236671236,-151.0,0.00058958,120]
[342972189,1732236671246,-500.0,0.00058958,120]
[342972190,1732236671255,-1079.0,0.00058959,120]
[342972191,1732236671360,-150.5,0.00058969,30]
[342972192,1732236671370,-150.5,0.00058979,30]
[342972193,1732236671382,-150.5,0.00058989,30]
[342972194,1732236671391,-151.0,0.00058996,120]
[342972195,1732236671401,-585.706885,0.00058996,120]
[342972196,1732236671410,-151.0,0.00058996,120]
[342972197,1732236671420,-500.0,0.00058996,120]
[342972198,1732236671430,-500.0,0.00058996,120]
[342972199,1732236671439,-293.14,0.00058996,120]
[342972200,1732236671449,-500.0,0.00058996,120]
[342972201,1732236671458,-500.0,0.00058996,120]
[342972202,1732236671468,-1680.59,0.00058996,120]
[342972203,1732236671478,-599.67,0.00058996,120]
[342972204,1732236671487,-500.0,0.00058996,120]
[342972205,1732236671497,-156.75,0.00058996,120]
[342972206,1732236671506,-645.83,0.00058996,120]
[342972207,1732236671516,-1461.79,0.00058996,120]
[342972208,1732236671526,-500.0,0.00058996,120]
[342972209,1732236671535,-614.88850345,0.00058996,120]
[342972210,1732236671544,-500.0,0.00058997,120]
[342972211,1732236671554,-500.0,0.00058997,120]
[342972212,1732236671564,-500.0,0.00058997,120]
[342972213,1732236671573,-500.0,0.00058997,120]
[342972214,1732236671583,-475.16012881,0.00058997,120]
[342972215,1732236671595,-500.0,0.00058997,120]
[342972216,1732236671605,-555.37370743,0.00058997,120]
[342972217,1732236671616,-500.0,0.00058997,120]
[342972218,1732236671626,-500.0,0.00058997,120]
[342972219,1732236671637,-500.0,0.00058997,120]
[342972220,1732236671646,-500.0,0.00058997,120]
[342972221,1732236671656,-500.0,0.00058997,120]
[342972222,1732236671666,-500.0,0.00058997,120]
[342972223,1732236671676,-500.0,0.00058997,120]
[342972224,1732236671686,-500.0,0.00058997,120]
[342972225,1732236671697,-500.0,0.00058997,120]
[342972226,1732236671707,-500.0,0.00058997,120]
[342972227,1732236671717,-500.0,0.00058997,120]
[342972228,1732236671727,-500.0,0.00058997,120]
[342972229,1732236671737,-500.0,0.00058997,120]
[342972230,1732236671748,-500.0,0.00058997,120]
[342972231,1732236671758,-500.0,0.00058997,120]
[342972232,1732236671767,-500.0,0.00058997,120]
[342972233,1732236671778,-500.0,0.00058997,120]
[342972234,1732236671788,-500.0,0.00058997,120]
[342972235,1732236671798,-613.91608699,0.00058997,120]
[342972236,1732236671808,-585.6508864,0.00058997,120]
[342972237,1732236671817,-641.09166808,0.00058997,120]
[342972238,1732236671827,-500.0,0.00058997,120]
[342972239,1732236671836,-151.0,0.00058997,120]
[342972240,1732236671850,-151.0,0.00058997,120]
[342972241,1732236671861,-151.0,0.00058997,120]
[342972242,1732236671870,-151.0,0.00058997,120]
[342972243,1732236671880,-151.0,0.00058997,120]
[342972244,1732236671890,-151.0,0.00058997,120]
[342972245,1732236671900,-182.98338,0.00058997,120]
[342972246,1732236671910,-151.0,0.00058997,120]
[342972247,1732236671920,-182.98338,0.00058997,120]
[342972248,1732236671930,-500.0,0.00058997,120]
[342972249,1732236671941,-500.0,0.00058997,120]
[342972250,1732236671951,-500.0,0.00058997,120]
[342972251,1732236671961,-562.29,0.00058997,120]
[342972252,1732236671971,-562.29,0.00058997,120]
[342972253,1732236671981,-500.0,0.00058997,120]
[342972254,1732236671990,-500.0,0.00058997,120]
[342972255,1732236672000,-151.0,0.00058997,120]
[342972256,1732236672010,-11982.01410801,0.00058997,120]
[342972257,1732236672019,-500.0,0.00058997,120]
[342972258,1732236672028,-502.30206517,0.00058997,120]
[342972259,1732236672039,-562.29,0.00058998,120]
[342972260,1732236672049,-562.29,0.00058998,120]
[342972261,1732236672059,-500.0,0.00058998,120]
[342972262,1732236672070,-500.0,0.00058998,120]
[342972263,1732236672079,-500.0,0.00058999,120]
[342972264,1732236672089,-302.62,0.00058999,120]
[342972265,1732236672102,-500.0,0.00058999,120]
[342972266,1732236672119,-500.0,0.00058999,120]
[342972267,1732236672128,-318.94,0.00058999,120]
[342972268,1732236672138,-500.0,0.00058999,120]
[342972269,1732236672147,-356.4,0.00058999,120]
[342972270,1732236672156,-589.28,0.00058999,120]
[342972271,1732236672166,-559.28,0.00058999,120]
[342972272,1732236672175,-151.0,0.00058999,120]
[342972273,1732236672184,-151.0,0.00058999,120]
[342972274,1732236672194,-151.0,0.00058999,120]
[342972275,1732236672203,-151.0,0.00058999,120]
[342972276,1732236672212,-151.0,0.00058999,120]
[342972277,1732236672221,-151.0,0.00058999,120]
[342972278,1732236672231,-151.0,0.00058999,120]
[342972279,1732236672240,-151.0,0.00058999,120]
[342972280,1732236672250,-432.43,0.00058999,120]
[342972281,1732236672260,-562.29,0.00058999,120]
[342972282,1732236672270,-562.29,0.00058999,120]
[342972283,1732236672280,-500.0,0.00058999,21]
[342972284,1732236672290,-643.21,0.00058999,120]
[342972285,1732236672301,-445.6,0.00058999,120]
[342972286,1732236672312,-500.0,0.00058999,120]
[342972287,1732236672322,-50000.0,0.00059,120]
[342972288,1732236672331,-151.0,0.00059,120]
[342972289,1732236672347,-743.38360033,0.00059016,15]
[342972290,1732236672356,-1000.0,0.00059107,120]
[342972291,1732236672366,-450.0,0.00059107,120]
[342972292,1732236672376,-2874.19,0.00059112,120]
[342972293,1732236672385,-1323.93,0.00059112,120]
[342972294,1732236672395,-500.0,0.00059113,120]
[342972295,1732236672405,-500.0,0.00059113,120]
[342972296,1732236672414,-500.0,0.00059113,120]
[342972297,1732236672424,-500.0,0.00059113,120]
[342972298,1732236672434,-500.0,0.00059113,120]
[342972299,1732236672444,-500.0,0.00059113,120]
[342972300,1732236672454,-500.0,0.00059113,120]
[342972301,1732236672463,-683.55,0.00059113,120]
[342972302,1732236672473,-500.0,0.00059113,120]
[342972303,1732236672483,-500.0,0.00059113,120]
[342972304,1732236672493,-500.0,0.00059113,120]
[342972305,1732236672502,-500.0,0.00059113,120]
[342972306,1732236672512,-500.0,0.00059113,120]
[342972307,1732236672521,-151.0,0.00059114,120]
[342972308,1732236672530,-151.0,0.00059114,120]
[342972309,1732236672540,-500.0,0.00059117,120]
[342972310,1732236672549,-150.0,0.00059187,120]
[342972311,1732236672559,-150.0,0.00059318,14]
[342972312,1732236672569,-150.0,0.00059347,14]
[342972313,1732236672578,-1000.0,0.00059381,120]
[342972314,1732236672588,-600.0,0.00059381,120]
[342972315,1732236672603,-500.0,0.0005939,120]
[342972316,1732236672614,-152.28,0.000595,60]
[342972317,1732236672624,-152.28,0.000595,60]
[342972318,1732236672634,-152.28,0.000595,60]
[342972319,1732236672644,-152.28,0.000595,60]
[342972320,1732236672655,-152.28,0.000595,60]
[342972321,1732236672664,-652.08355692,0.00059575,120]
[342972322,1732236672674,-652.08355692,0.00059582,120]
[342972323,1732236672689,-652.08355692,0.00059587,120]
[342972324,1732236672705,-1115.10980138,0.00059633,120]
[342972325,1732236672716,-1000.0,0.00059655,120]
[342972326,1732236672726,-750.0,0.00059655,120]
[342972327,1732236672736,-500.0,0.00059663,120]
[342972328,1732236672747,-2711.6821707,0.00059678,82]
[342972329,1732236672756,-555.53,0.00059699,120]
[342972330,1732236672766,-500.0,0.00059699,21]
[342972331,1732236672776,-500.0,0.00059699,120]
[342972332,1732236672786,-500.0,0.00059699,120]
[342972333,1732236672796,-151.0,0.00059699,120]
[342972334,1732236672807,-1680.59,0.00059699,120]
[342972335,1732236672817,-643.21,0.00059699,120]
[342972336,1732236672827,-151.0,0.00059699,120]
[342972337,1732236672837,-295.28425,0.00059699,120]
[342972338,1732236672851,-645.83,0.00059699,120]
[342972339,1732236672861,-2874.19,0.00059699,120]
[342972340,1732236672870,-1323.93,0.00059699,120]
[342972341,1732236672880,-1461.79,0.00059699,120]
[342972342,1732236672890,-500.0,0.00059699,120]
[342972343,1732236672900,-494.8,0.00059699,120]
[342972344,1732236672910,-28325.65382491,0.000597,2]
[342972345,1732236673112,-65876.19297509,0.000597,2]
[342972346,1732236673121,-12010.2493,0.000597,2]
[342972347,1732236673130,-37483.70272491,0.000597,120]
[342972348,1732236673143,-4102.69331745,0.000597,120]
[342972349,1732236673155,-1273.2499996,0.000597,120]
[342972350,1732236673166,-1412.58725933,0.000597,120]
[342972351,1732236673178,-9452.13355586,0.000597,120]
[342972352,1732236673187,-157.02,0.000597,120]
[342972353,1732236673197,-151.0,0.000597,120]
[342972354,1732236673207,-151.0,0.000597,120]
[342972355,1732236673216,-151.0,0.000597,120]
[342972356,1732236673314,-151.0,0.000597,120]
[342972357,1732236673324,-151.0,0.000597,120]
[342972358,1732236673334,-151.0,0.000597,120]
[342972359,1732236673347,-231.762559,0.000597,120]
[342972360,1732236673357,-50000.0,0.000597,120]
[342972361,1732236673367,-151.0,0.000597,120]
[342972362,1732236673376,-151.0,0.000597,120]
[342972363,1732236673386,-151.0,0.000597,120]
[342972364,1732236673395,-585.706885,0.000597,120]
[342972365,1732236673405,-278.055679,0.000597,120]
[342972366,1732236673414,-151.0,0.000597,120]
[342972367,1732236673424,-222.805724,0.000597,120]
[342972368,1732236673434,-151.0,0.000597,30]
[342972369,1732236673443,-222.805724,0.000597,120]
[342972370,1732236673452,-151.0,0.000597,110]
[342972371,1732236673462,-151.0,0.000597,120]
[342972372,1732236673471,-151.0,0.000597,120]
[342972373,1732236673482,-151.0,0.000597,120]
[342972374,1732236673491,-161.181798,0.000597,120]
[342972375,1732236673500,-161.181798,0.000597,120]
[342972376,1732236673510,-385.7216,0.000597,120]
[342972377,1732236673519,-385.7216,0.000597,120]
[342972378,1732236673529,-4300.0,0.000597,21]
[342972379,1732236673538,-151.0,0.000597,120]
[342972380,1732236673547,-389.539599,0.000597,120]
[342972381,1732236673557,-389.539599,0.000597,120]
[342972382,1732236673565,-1115.10980138,0.00059728,120]
[342972383,1732236673575,-562.29,0.00059741,120]
[342972384,1732236673584,-150.0,0.00059761,120]
[342972385,1732236673596,-1115.10980138,0.00059771,120]
[342972386,1732236673605,-150.0,0.00059773,120]
[342972387,1732236673615,-500.0,0.00059773,120]
[342972388,1732236673624,-1099.82320826,0.00059776,39]
[342972389,1732236673634,-258.275263,0.00059788,2]
[342972390,1732236673643,-641.64896712,0.00059798,120]
[342972391,1732236673653,-500.0,0.00059798,120]
[342972392,1732236673662,-500.0,0.00059798,120]
[342972393,1732236673672,-500.0,0.00059798,120]
[342972394,1732236673681,-500.0,0.00059798,120]
[342972395,1732236673691,-500.0,0.00059798,120]
[342972396,1732236673701,-500.0,0.00059798,120]
[342972397,1732236673710,-683.55,0.00059798,120]
[342972398,1732236673719,-500.0,0.00059798,120]
[342972399,1732236673728,-500.0,0.00059798,120]
[342972400,1732236673738,-500.0,0.00059798,120]
[342972401,1732236673748,-500.0,0.00059798,120]
[342972402,1732236673757,-500.0,0.00059798,120]
[342972403,1732236673767,-150.01,0.00059799,120]
[342972404,1732236673777,-2298.11834967,0.00059799,120]
[342972405,1732236673787,-151.0,0.00059799,120]
[342972406,1732236673796,-151.0,0.00059799,120]
[342972407,1732236673806,-151.0,0.00059799,120]
[342972408,1732236673816,-151.0,0.00059799,120]
[342972409,1732236673826,-182.98338,0.00059799,120]
[342972410,1732236673835,-182.98338,0.00059799,120]
[342972411,1732236673847,-500.0,0.00059799,120]
[342972412,1732236673857,-500.0,0.00059799,120]
[342972413,1732236673866,-500.0,0.00059799,120]
[342972414,1732236673876,-562.29,0.00059799,120]
[342972415,1732236673885,-562.29,0.00059799,120]
[342972416,1732236673895,-562.29,0.00059799,120]
[342972417,1732236673904,-562.29,0.00059799,120]
[342972418,1732236673913,-562.29,0.00059799,120]
[342972419,1732236673922,-562.29,0.00059799,120]
[342972420,1732236673932,-562.29,0.00059799,120]
[342972421,1732236673942,-562.29,0.00059799,120]
[342972422,1732236673951,-562.29,0.00059799,120]
[342972423,1732236673960,-562.29,0.00059799,120]
[342972424,1732236673970,-562.45565437,0.00059799,120]
[342972425,1732236673979,-500.0,0.00059799,120]
[342972426,1732236673988,-500.0,0.00059799,21]
[342972427,1732236673998,-500.0,0.00059799,21]
[342972428,1732236674007,-500.0,0.00059799,120]
[342972429,1732236674016,-500.0,0.00059799,120]
[342972430,1732236674026,-500.0,0.00059799,120]
[342972431,1732236674035,-500.0,0.00059799,120]
[342972432,1732236674045,-500.0,0.00059799,120]
[342972433,1732236674055,-500.0,0.00059799,120]
[342972434,1732236674064,-1680.59,0.00059799,120]
[342972435,1732236674073,-1680.59,0.00059799,120]
[342972436,1732236674083,-643.21,0.00059799,120]
[342972437,1732236674095,-643.21,0.00059799,120]
[342972438,1732236674105,-683.55,0.00059799,120]
[342972439,1732236674114,-645.83,0.00059799,120]
[342972440,1732236674124,-645.83,0.00059799,120]
[342972441,1732236674133,-2874.19,0.00059799,120]
[342972442,1732236674142,-2874.19,0.00059799,120]
[342972443,1732236674151,-500.0,0.00059799,120]
[342972444,1732236674160,-1323.93,0.00059799,120]
[342972445,1732236674170,-1323.93,0.00059799,120]
[342972446,1732236674179,-1461.79,0.00059799,120]
[342972447,1732236674190,-1461.79,0.00059799,120]
[342972448,1732236674200,-500.0,0.00059799,120]
[342972449,1732236674209,-500.0,0.00059799,120]
[342972450,1732236674219,-500.0,0.00059799,120]
[342972451,1732236674229,-500.0,0.00059799,120]
[342972452,1732236674238,-500.0,0.00059799,120]
[342972453,1732236674248,-500.0,0.00059799,120]
[342972454,1732236674256,-1054.0,0.000598,120]
[342972455,1732236674266,-175264.90046535,0.000598,120]
[342972456,1732236674278,-11440.25617284,0.000598,120]
[342972457,1732236674290,-95797.25753005,0.000598,120]
[342972458,1732236700116,155.13,0.00015342,2]
[342972459,1732236719862,250.0,0.0002,3]
[342972463,1732237655420,156.74,0.00015342,2]
[342972471,1732237771144,-800.0,0.00026986,120]
[342972472,1732237771165,-320.68,0.00026986,120]
[342972473,1732237771186,-250.0,0.00031,2]
[342972474,1732237771207,-300.0,0.00033,2]
[342972475,1732237771230,-350.0,0.00035,2]
[342972476,1732237771252,-1412.677578,0.00038356,15]
[342972489,1732237832012,-273.27146414,0.00029658,2]
[342972490,1732237832024,-235.0963381,0.00037504,120]
[342972491,1732237832034,-150.99,0.00041096,2]
[342972492,1732237832044,-1704.96,0.00041096,2]
[342972493,1732237832053,-2689.60839627,0.00041096,2]
[342972494,1732237832066,-589.79160373,0.00041096,2]
[342972495,1732237832076,-189.99,0.00041096,30]
[342972496,1732237832085,-150.0,0.00042,2]
[342972497,1732237832095,-460.39,0.00043536,7]
[342972498,1732237832105,-150.0,0.00043835,4]
[342972499,1732237832115,-2441.52856206,0.00043836,2]
[342972500,1732237832126,-459.00143794,0.00043836,2]
[342972501,1732237832135,-1766.41,0.00043836,30]
[342972502,1732237832145,-4053.01,0.00043836,30]
[342972503,1732237832155,-499.99,0.00043836,2]
[342972504,1732237832165,-299.99,0.00043836,120]
[342972505,1732237832175,-1502.66,0.00043836,2]
[342972506,1732237832185,-3000.0,0.00043836,30]
[342972507,1732237832194,-969.18,0.00045005,30]
[342972508,1732237832203,-969.18,0.00045005,30]
[342972509,1732237832213,-969.18,0.00045005,30]
[342972510,1732237832222,-969.18,0.00045005,30]
[342972511,1732237832232,-969.18,0.00045005,30]
[342972512,1732237832241,-1203.91,0.00045005,30]
[342972513,1732237832251,-185.11,0.00045378,30]
[342972514,1732237832260,-155.13,0.00045753,2]
[342972515,1732237832271,-154.651,0.0004713,120]
[342972516,1732237832281,-10000.0,0.00049,120]
[342972517,1732237832291,-461.02,0.00049286,2]
[342972518,1732237832300,-2335.68732096,0.000498,120]
[342972519,1732237832309,-500.0,0.0004993,2]
[342972520,1732237832319,-160.06,0.0004995,120]
[342972521,1732237832329,-250.0,0.0005,120]
[342972522,1732237832339,-250.0,0.0005,60]
[342972523,1732237832349,-250.0,0.0005,30]
[342972524,1732237832358,-262.61,0.0005,30]
[342972525,1732237832367,-180.126,0.0005,88]
[342972526,1732237832377,-559.173,0.0005,88]
[342972527,1732237832387,-500.0,0.0005,120]
[342972528,1732237832397,-250.0,0.00050077,120]
[342972529,1732237832407,-250.0,0.00050242,120]
[342972530,1732237832418,-37625.15908002,0.00050459,2]
[342972531,1732237832430,-17768.01417524,0.00050459,2]
[342972532,1732237832445,-1186.48373938,0.00050459,2]
[342972533,1732237832473,-299.6900001,0.00041096,30]
[342972534,1732237832485,-2700.3099999,0.00041096,30]
[342972535,1732237832495,-4904.02000536,0.00050459,2]
[342972536,1732237832505,-433.47,0.00051078,30]
[342972537,1732237832514,-433.47,0.00051078,30]
[342972538,1732237832526,-151.84,0.00051212,120]
[342972539,1732237832535,-250.0,0.00051244,120]
[342972540,1732237832544,-154.687,0.0005132,120]
[342972541,1732237832554,-175.4,0.00051385,2]
[342972542,1732237832564,-295.15,0.000514,7]
[342972543,1732237832573,-2441.37288988,0.00051434,2]
[342972544,1732237832589,-1407.06112803,0.00051434,2]
[342972545,1732237832600,-947.31015434,0.00051434,2]
[342972546,1732237832612,-3367.1173,0.00051434,2]
[342972547,1732237832623,-2066.80193497,0.00051434,2]
[342972548,1732237832638,-573.68757465,0.00051434,2]
[342972549,1732237832649,-275.29579235,0.00051434,2]
[342972550,1732237832661,-875.314314,0.00051434,2]
[342972551,1732237832673,-11946.03891178,0.00051434,2]
[342972552,1732237832683,-3975.69,0.00051445,7]
[342972553,1732237832692,-461.02,0.0005155,2]
[342972554,1732237832702,-150.17,0.00051576,2]
[342972555,1732237832712,-155.44,0.00051656,120]
[342972556,1732237832721,-1000.0,0.00051755,120]
[342972557,1732237832732,-1219.44,0.00051939,2]
[342972558,1732237832743,-250.0,0.00052,30]
[342972559,1732237832753,-164.52,0.00052398,2]
[342972560,1732237832763,-744.04,0.00053123,120]
[342972561,1732237832774,-29574.61544748,0.000533,120]
[342972562,1732237832784,-461.02,0.00053814,2]
[342972563,1732237832794,-10000.0,0.00054,120]
[342972564,1732237832804,-520.36852024,0.00054624,15]
[342972565,1732237832815,-155.44,0.00054724,120]
[342972566,1732237832824,-500.0,0.00054795,120]
[342972567,1732237832834,-433.47,0.00055178,60]
[342972568,1732237832844,-154.691,0.0005551,120]
[342972569,1732237832854,-250.0,0.00056,120]
[342972570,1732237832863,-250.0,0.00056,60]
[342972571,1732237832873,-258.0,0.00056,60]
[342972572,1732237832882,-261.0,0.00056,120]
[342972573,1732237832892,-461.02,0.00056078,2]
[342972574,1732237832902,-453.78988996,0.00056775,2]
[342972575,1732237832911,-3579.0621,0.00057434,2]